Cogmind - Beta 17 @@@ ROGUE MODE // 2026.07.12 @ 19:36:40 Player: Skysub Result: Self-destructed Performance ------------- Evolutions (1) 500 Regions Visited (2) 400 Robots Destroyed (0) 0 Value Destroyed (0) 0 Prototype IDs (0) 0 Alien Tech Used (0) 0 Bonus (200) 200 TOTAL SCORE: 1100 Bonus ------- Pacifist 200 Cogmind --------- Core Integrity 59/400 Matter 299/300 Energy 100/100 System Corruption 0% Temperature Cool (0) Movement Core (50) Location -9/Materials Parts ------- > --- POWER (1) -------- (None) > --- PROPULSION (4) --- (None) > --- UTILITY (2) ------ Terrain Scan Processor > --- WEAPON (2) ------- (None) > --- INVENTORY (5) ---- Ion Engine Light Ion Engine VTOL Module Rocket Launcher Rocket Launcher Peak State ------------ > --- POWER ------------ (None) > --- PROPULSION ------- (None) > --- UTILITY ---------- Terrain Scan Processor > --- WEAPON ----------- (None) > --- INVENTORY -------- Ion Engine Light Ion Engine Rocket Launcher [Rating: 2] Favorites ----------- Power None Propulsion None Utility Terrain Scan Processor Processor Terrain Scan Processor Weapon None Build | -11 -10 -9 ------- Run | Yrd Mat Mat Slots Evolved 2 | . . 2 Power . | . . . Propulsion 2 | . . 2 Utility . | . . . Weapon . | . . . Parts Attached 1 | . . 1 Power . | . . . Engine . | . . . Core . | . . . Reactor . | . . . Propulsion . | . . . Treads . | . . . Leg . | . . . Wheel . | . . . Hover . | . . . Flight . | . . . Utility 1 | . . 1 Device . | . . . Storage . | . . . Processor 1 | . . 1 Hackware . | . . . Protection . | . . . Artifact . | . . . Weapon . | . . . Energy Gun . | . . . Energy Cannon . | . . . Ballistic Gun . | . . . Ballistic Cannon . | . . . Launcher . | . . . Special Weapon . | . . . Impact Weapon . | . . . Slashing Weapon . | . . . Piercing Weapon . | . . . Special Melee Weapon . | . . . Unidentified Prototypes . | . . . Parts Lost . | . . . Power . | . . . Propulsion . | . . . Utility . | . . . Weapon . | . . . Highest Loss Streak . | . . . To Critical Strikes . | . . . Average Backups 2 | . 1 3 Power 1 | . 1 2 Propulsion . | . . . Utility . | . . . Weapon . | . . 1 Tool/Special . | . . . Unused Backups 3 | . . 3 Power 1 | . . 1 Propulsion . | . . . Utility . | . . . Weapon 2 | . . 2 Tool/Special . | . . . Average Slot Usage (%) 3 | . . 7 Processor 3 | . . 7 Peak Build Rating 2 | . . 2 Average Rating . | . . 1 On Entrance . | . . . Avg Prop Armor Cover (%) . | . . . Naked Turns 78 | . 63 15 Heaviest Build . | . . . Greatest Support 3 | 3 3 3 Greatest Overweight (x) . | . . . Average Overweight (x) . | . . . Largest Inventory Capacity 5 | 5 5 5 Average Capacity 5 | 5 5 5 Most Carried 5 | 1 2 5 Average Carried 2 | . 1 3 Final Capacity 5 | 5 5 5 Final Carried 5 | 1 2 5 Class Distribution -------------------- 100% | Mutant Dominant Class ---------------- Mutant | -10/Materials Mutant | -9/Materials Resources | -11 -10 -9 ----------- Run | Yrd Mat Mat Matter Collected 200 | 200 . . Remotely . | . . . Salvage Created . | . . . Parts . | . . . Haulers Intercepted . | . . . Recyclers Shooed . | . . . Parts Field Recycled . | . . . Retrieved Matter . | . . . Parts Self-Destructed . | . . . Prevented . | . . . Parts Restored . | . . . Kills | -11 -10 -9 ------- Run | Yrd Mat Mat Combat Hostiles Destroyed . | . . . Classes Destroyed . | . . . Best Kill Streak . | . . . Combat Bots Only . | . . . Max Kills in Single Turn . | . . . Gunslinging . | . . . Exploded . | . . . Melee . | . . . Uniques/NPCs Destroyed . | . . . Combat | -11 -10 -9 -------- Run | Yrd Mat Mat Hostile Shots Fired 55 | . 9 46 Missed 20 | . 5 15 Hits 35 | . 4 31 Melee 1 | . . 1 Projectile 34 | . 4 30 Damage Taken 392 | . 51 341 Core 392 | . 51 341 Absorbed by Shields . | . . . Core Remaining (%) 89 | 100 79 . Volleys Fired . | . . . Largest . | . . . Hottest . | . . . Shots Fired . | . . . Gun . | . . . Cannon . | . . . Launcher . | . . . Special . | . . . Kinetic . | . . . Thermal . | . . . Explosive . | . . . Electromagnetic . | . . . Robot Hit Streak . | . . . Robot Miss Streak . | . . . Penetration Max . | . . . Secondary Targets . | . . . Shots Hit Robots . | . . . Core Hits 4 | . 3 1 Critical Kills . | . . . Critical Parts Destroyed . | . . . Critical Strikes . | . . . Melee Attacks . | . . . Impact . | . . . Slashing . | . . . Piercing . | . . . Sneak Attacks . | . . . Combat Hostiles . | . . . Follow-up Attacks . | . . . Damage Inflicted 32 | . 23 9 Guns . | . . . Cannons . | . . . Explosions . | . . . Melee . | . . . Ramming 32 | . 23 9 Kinetic . | . . . Thermal . | . . . Explosive . | . . . Electromagnetic . | . . . Impact . | . . . Slashing . | . . . Piercing . | . . . Highest Corruption 3 | . 3 . Average Corruption 2 | . 2 . Corruption Purged . | . . . Corruption Blocked . | . . . Effects 1 | . 1 . Heat Flow Errors 1 | . 1 . Overload Shots . | . . . Overflow Damage . | . . . Projectiles . | . . . Explosions . | . . . Melee . | . . . Knockbacks . | . . . Impact . | . . . Kinetic . | . . . Secondary . | . . . Self-Inflicted Damage 14 | . 10 4 Shots . | . . . Rammed 9 | . 7 2 Targets Rammed 9 | . 7 2 Kicked . | . . . Crushed . | . . . Highest Temperature 253 | . 253 . Average Temperature 193 | . 193 . Received Heat Transfer 132 | . 24 108 Siege Activations . | . . . Martial Activations . | . . . Shielding Activations . | . . . Robots Disrupted . | . . . Combat Hostiles . | . . . Robots Corrupted . | . . . Combat Hostiles . | . . . Parts Fried . | . . . Impact Corruptions . | . . . Robots Melted . | . . . Combat Hostiles . | . . . Parts Melted . | . . . Heat Transferred . | . . . Parts Sabotaged . | . . . Parts Stolen . | . . . Parts Stripped . | . . . Power Chain Reactions . | . . . Alert | -11 -10 -9 ------- Run | Yrd Mat Mat Maximum Alert Level . | . . . Low Security (%) 100 | 100 100 100 Level 1 . | . . . Level 2 . | . . . Level 3 . | . . . Level 4 . | . . . Level 5 . | . . . High Security . | . . . Max Security . | . . . Peak Influence 17 | . 17 15 Initial . | . . . Average 2 | . 4 . Influence Increases 39 | . 17 22 Successful Hack 24 | . 17 7 Lose Combat Pursuer 15 | . . 15 Influence Decreases 24 | . 17 7 Time Decay 24 | . 17 7 Squads Dispatched 2 | . 1 1 Investigation . | . . . Extermination . | . . . Reinforcement 2 | . 1 1 Assault . | . . . Garrison . | . . . Intercept . | . . . Searches Triggered . | . . . Construction Impeded . | . . . Haulers Reinforced . | . . . Active Scanning Responses . | . . . Cargo Convoy Interrupts . | . . . Stealth | -11 -10 -9 --------- Run | Yrd Mat Mat Distress Signals 1 | . 1 . Communications Jammed . | . . . Distress Signals . | . . . Times Spotted 18 | . 3 15 Peak Tracking Total 16 | . 2 16 Tactical Retreats 1 | . . 1 Traps | -11 -10 -9 ------- Run | Yrd Mat Mat Traps Triggered 2 | . 2 . Indirectly . | . . . Trap Hack Attempts . | . . . Triggered . | . . . Disarmed . | . . . Reprogrammed . | . . . Reused . | . . . Traps Extracted . | . . . Installed . | . . . Triggered . | . . . Machines | -11 -10 -9 ---------- Run | Yrd Mat Mat Machines Disabled . | . . . Max in Single Turn . | . . . Machines Repaired . | . . . Machines Dismantled . | . . . Machines Sabotaged . | . . . Overloaded Fab Kills . | . . . Hacking | -11 -10 -9 --------- Run | Yrd Mat Mat Machines Accessed 4 | . 2 2 Terminals 4 | . 2 2 Fabricators . | . . . Repair Stations . | . . . Recycling Units . | . . . Scanalyzers . | . . . Garrison Access . | . . . Total Hacks 12 | . 4 8 Successful 7 | . 4 3 Failed 5 | . . 5 Catastrophic . | . . . Database Lockouts . | . . . Manual 9 | . 2 7 Terminals 12 | . 4 8 Fabricators . | . . . Repair Stations . | . . . Recycling Units . | . . . Scanalyzers . | . . . Garrison Access . | . . . Terminal Hacks 5 | . 3 2 Part Schematic 1 | . . 1 Level Access Points 1 | . 1 . Terminal Index 1 | . 1 . Zone Layout 2 | . 1 1 Fabricator Hacks . | . . . Repair Station Hacks . | . . . Recycling Unit Hacks . | . . . Scanalyzer . | . . . Garrison Access Hacks . | . . . Unauthorized Hacks 2 | . 1 1 Terminals 2 | . 1 1 Botnet 2 | . 1 1 Fabricators . | . . . Repair Stations . | . . . Recycling Units . | . . . Scanalyzers . | . . . Garrison Access . | . . . Data Cores Recovered . | . . . Used . | . . . Hacking Detections 2 | . . 2 Full Trace Events 2 | . . 2 Feedback Events . | . . . Feedback Blocked . | . . . Robot Schematics Acquired . | . . . Robots Built . | . . . Authchips . | . . . Time . | . . . Total Robot Build Rating . | . . . Part Schematics Acquired 1 | . . 1 Parts Built . | . . . Authchips . | . . . Time . | . . . Total Part Build Rating . | . . . Part Studies Acquired . | . . . Parts Repaired . | . . . Time . | . . . Parts Recycled . | . . . Recycled Matter . | . . . Retrieved Matter . | . . . Retrieved Components . | . . . Parts Scanalyzed . | . . . Part Schematics Acquired . | . . . Parts Damaged . | . . . Bothacking | -11 -10 -9 ------------ Run | Yrd Mat Mat Used RIF Installer . | . . . Robots Hacked . | . . . Non-combat . | . . . Combat . | . . . Robot Hacks Applied . | . . . Relay Couplers Released . | . . . Fabnet Peak Effective % . | . . . Robots Rewired . | . . . Allies Hacked . | . . . Hacks Repelled . | . . . Allies | -11 -10 -9 -------- Run | Yrd Mat Mat Total Allies . | . . . Largest Group . | . . . Highest-Rated Group . | . . . Highest-Rated Ally . | . . . Total Orders . | . . . Ally Attacks . | . . . Total Damage . | . . . Kills . | . . . Allies Corrupted . | . . . Allies Melted . | . . . Intel | -11 -10 -9 ------- Run | Yrd Mat Mat Active Infowar (turns) . | . . . Robot Analysis Total . | . . . Derelict Logs Recovered . | . . . Drone Launches . | . . . Drone Recoveries . | . . . Exploration | -11 -10 -9 ------------- Run | Yrd Mat Mat Turns Passed 140 | 15 63 62 Spaces Moved 246 | 27 110 109 Core 246 | 27 110 109 Treads . | . . . Legs . | . . . Wheels . | . . . Hover . | . . . Flight . | . . . Fastest Speed 50 | 50 50 50 Average Speed 50 | 50 50 50 Slowest Speed 50 | 50 50 50 Overloaded Moves . | . . . Propulsion Burnouts . | . . . Robots Hopped . | . . . Potential Cave-ins . | . . . Cave-ins Triggered . | . . . Exploration Rate (%) 17 | 3 30 19 Regions Visited 2 Branch Regions . Pre-discovered Areas . | . . . Known Exits Taken 1 | . 1 . Unknown Exits Taken 1 | 1 . . Scrap Searched . | . . . Spaces Dug . | . . . Terrain Destroyed . | . . . Melee . | . . . Projectile . | . . . AOE . | . . . Terrain Rammed . | . . . Walls Destroyed . | . . . Machines Disabled . | . . . Actions | -11 -10 -9 --------- Run | Yrd Mat Mat Total 259 | 27 117 115 Wait . | . . . Move 244 | 26 109 109 Hop . | . . . Pick Up 5 | 1 1 3 Fast Attach 1 | . . 1 Attach . | . . . Detach . | . . . Swap . | . . . Drop . | . . . Fire . | . . . Melee . | . . . Ram 9 | . 7 2 Kick . | . . . Crush . | . . . Escape Stasis . | . . . Rewire . | . . . Trap . | . . . Miscellaneous . | . . . Route ------- -11/Scrapyard -10/Materials (discovered 4 exits: *Mat x3 / [*Min]) -9/Materials History --------- Turn | Location | Event 5 | -11/Scrapyard | Discovered new exit (range 15) 16 | -11/Scrapyard | Entered Materials 28 | -10/Materials | Identified exit to Materials 61 | -10/Materials | Discovered new exit (range 14) 79 | -10/Materials | Entered another Materials area 79 | -9/Materials | Evolved 2 slots: Propulsion x2 124 | -9/Materials | Core integrity fell below 50% 135 | -9/Materials | Core integrity fell below 20% 141 | -9/Materials | Self-destructed Last Messages --------------- 00116_ Connecting with Terminal... >>Trojan(Botnet) Trojan loaded successfully. Testing... Terminal linked with 0 systems. Awaiting botnet instructions. >>Layout(Zone) Retrieving Zone 4X layout... Downloaded map data. 00116_ Connecting with Terminal... >>Schematic(Plasma Cutter) Downloading schematic... Plasma Cutter Rating: 2 Schematic downloaded. 00124_ ALERT: Hostiles spotted, dispatching reinforcements to Terminal M001. 00126_ Connecting with Terminal... 00128_ Acquired VTOL Module. 00135_ T-07 Excavator is excavating. Map ----- +----------------------------------------------------+ | ?????????????????????????????????????????????????? | | ??? ??????????????????????????????????????????? | | ??? ?????????????????????????????????????????? | | ??# "?????????????????????????????????????????? | | ??# ""????????????????????????????????????????? | | ??# ""????????????????????????????????????????? | | ??+ ????#????????????????????????????????????? | | ??# ?? #????????????????????????????????????? | | ??# """ #????????????????????????????????????? | | ??# """ #????????????????????????????????????? | | ??# """ #????????????????????????????????????? | | ### #????????????????????????????????????? | | # ## #????????????????????????????????????? | | # ????????????????????????????????????? | | T" / #????????????????????????????????????? | | # ######????????????????????????????????????? | | #### ##?#######?????????????? #???????????????? | | ### #?# ###########??"" [#???????????????? | | ### "" # """ #???????????????? | | T + """ #???????????????? | | ### # """ #???????????????? | | ### #?# ######### #??"" #???????????????? | | #########?#### ##???????#s#???? #???????????????? | | #???????????# #????????# #??????????????????????? | | #???????????# #????????#s#??????????????????????? | | #???????????# #????????#@#??????????????????????? | | #???????????# #????????#s#??????????????????????? | | #???????????# #????????# #??????????????????????? | | #???????????# #????????# #??????????????????????? | | #???????????# #????????# #??????????????????????? | | #???????????? ?????????#t#??????????????????????? | | #???????????? ?????????# ??????????????????????? | | #???????????? ?????????###??????????????????????? | | #???????????? ??????????????????????????????????? | | #???????????? ??????????????????????????????????? | | #???????????? ??????????????????????????????????? | | #???????????? ??????????????????????????????????? | | #???????????????????????????????????????????????? | | #???????????????????????????????????????????????? | | #???????????????????????????????????????????????? | | #???????????????????????????????????????????????? | | #???????????????????????????????????????????????? | | #???????????????????????????????????????????????? | | #???????????????????????????????????????????????? | | #???????????????????????????????????????????????? | | #???????????????????????????????????????????????? | | #???????????????????????????????????????????????? | | #???????????????????????????????????????????????? | | #???????????????????????????????????????????????? | | #???????????????????????????????????????????????? | +----------------------------------------------------+ Best States ------------- Heat Dissipation 28 Energy Generation 5 Energy Capacity 100 Matter Stores 300 Matter Capacity 300 Sight Range 16 Terrain Scan Density 85 Evasion (%) 50 Item Schematics ----------------- Plasma Cutter | -9/Materials | Hacked Robot Schematics ------------------ None Fabricated ------------ Nothing Repaired ---------- Nothing Studied --------- None Alien Tech Used ----------------- None Achievements -------------- None Challenges ------------ None Game ------ Seed ElectronMetaDoublenader Manual? 0 Play Time 00:05:21 Cumulative 323.2 hours Start 2026.07.12 @ 19:32:32 End 2026.07.12 @ 19:36:40 Sessions 1 Manual Loads 0 Difficulty Rogue Special Mode None Game No. 392 Rogue 392 Adventurer 0 Explorer 0 Win Type - Total 21 Types 13/0/3/1/1/0/1/1/0/1 Lore% 78 Gallery% 74 Achievement% 64 Wizard Run 0 Options --------- Layout 1 ASCII 0 Keyboard 1 Movement Arrows Keybinds 0 Fullscreen 2 Font 36/Smallcaps Map View 50x40 Zoom Use 0% Tactical HUD 1 Map Filters NONE Filters NONE Steam 1 RUN: f94a3a58-ac63-453e-89e7-21766fa939e6